Cogmind - Beta 15 --- EXPLORER MODE // 2025.06.28 @ 05:53:50 Player: Reallybaked Result: Destroyed by G-47 Trooper with Particle Gun Performance ------------- Evolutions (1) 500 Regions Visited (3) 600 Robots Destroyed (35) 175 Value Destroyed (800) 800 Prototype IDs (2) 40 Alien Tech Used (0) 0 Bonus (0) 0 TOTAL SCORE: 2115 Bonus ------- None Cogmind --------- Core Integrity 0/400 Matter 295/300 Energy 100/100 System Corruption 0% Temperature Cool (9) Movement Core (100) Ox1 Location -9/Materials Parts ------- > --- POWER (2) -------- (None) > --- PROPULSION (2) --- (None) > --- UTILITY (3) ------ (None) > --- WEAPON (3) ------- Maul Maul > --- INVENTORY (5) ---- Wheel Small Laser Assault Rifle Light Assault Rifle Mining Laser Peak State ------------ > --- POWER ------------ Improved Ion Engine Improved Ion Engine > --- PROPULSION ------- Light Treads Improved Treads > --- UTILITY ---------- Heat Sink Propulsion Shielding Light Armor Plating > --- WEAPON ----------- Beam Rifle Maul Maul > --- INVENTORY -------- Wheel Small Laser Assault Rifle Light Assault Rifle Mining Laser [Rating: 16] Favorites ----------- Power Improved Ion Engine Engine Improved Ion Engine Propulsion Wheel Treads Light Treads Leg Aluminum Leg Wheel Wheel Utility Light Armor Plating Device Heat Sink Processor Targeting Computer Protection Light Armor Plating Weapon Light Cannon Energy Gun Beam Rifle Ballistic Gun Assault Rifle Ballistic Cannon Light Cannon Special Weapon Mining Laser Impact Weapon Maul Build | -11 -10 -10 -9 ------- Run | Yrd Mat Min Mat Slots Evolved 3 | . 1 . 2 Power 1 | . 1 . . Propulsion . | . . . . Utility 1 | . . . 1 Weapon 1 | . . . 1 Parts Attached 28 | 7 6 . 15 Power 4 | 1 1 . 2 Engine 4 | 1 1 . 2 Core . | . . . . Reactor . | . . . . Propulsion 7 | 2 . . 5 Treads 3 | . . . 3 Leg 2 | . . . 2 Wheel 2 | 2 . . . Hover . | . . . . Flight . | . . . . Utility 6 | 2 1 . 3 Device 2 | . . . 2 Storage . | . . . . Processor 1 | 1 . . . Hackware . | . . . . Protection 3 | 1 1 . 1 Artifact . | . . . . Weapon 11 | 2 4 . 5 Energy Gun 3 | . . . 3 Energy Cannon . | . . . . Ballistic Gun 2 | 2 . . . Ballistic Cannon 2 | . 2 . . Launcher . | . . . . Special Weapon 2 | . 2 . . Impact Weapon 2 | . . . 2 Slashing Weapon . | . . . . Piercing Weapon . | . . . . Special Melee Weapon . | . . . . Unidentified Prototypes . | . . . . Parts Lost 8 | . . . 8 Power 2 | . . . 2 Propulsion 2 | . . . 2 Utility 3 | . . . 3 Weapon 1 | . . . 1 Highest Loss Streak 4 | . . . 4 To Critical Strikes . | . . . . Average Backups 4 | 1 4 4 4 Power . | . . . . Propulsion . | . . . . Utility . | . 1 . . Weapon 3 | . 2 4 4 Tool/Special . | . . . . Unused Backups 2 | . 1 . 1 Power . | . . . . Propulsion . | . . . . Utility 1 | . 1 . . Weapon 1 | . . . 1 Tool/Special . | . . . . Average Slot Usage (%) 92 | . 97 100 88 Engine 19 | . 22 25 17 Treads 6 | . . . 10 Leg 5 | . . . 8 Wheel 9 | . 25 25 . Device 4 | . . . 7 Processor 1 | . 11 . . Protection 17 | . 12 25 16 Energy Gun 5 | . . . 8 Ballistic Cannon 12 | . 21 1 13 Special Weapon 4 | . . 23 . Impact Weapon 3 | . . . 5 Peak Build Rating 16 | 7 8 8 16 Average Rating 10 | 3 7 8 12 On Entrance 5 | . 7 8 8 Naked Turns . | . . . . Heaviest Build 28 | 9 16 16 28 Greatest Support 43 | 20 20 20 43 Greatest Overweight (x) 1 | . . . 1 Average Overweight (x) . | . . . . Largest Inventory Capacity 5 | 5 5 5 5 Average Capacity 5 | 5 5 5 5 Most Carried 5 | 5 5 5 5 Average Carried 4 | 1 4 4 4 Final Capacity 5 | 5 5 5 5 Final Carried 5 | 3 5 4 5 Class Distribution -------------------- 68% | Hacker-Mutant 31% | Hacker-Tank Dominant Class ---------------- Hacker-Mutant | -10/Materials Hacker-Mutant | -10/Mines Hacker-Tank | -9/Materials Resources | -11 -10 -10 -9 ----------- Run | Yrd Mat Min Mat Matter Collected 769 | 282 102 45 340 Remotely . | . . . . Salvage Created 952 | 47 91 15 799 Parts 61 | . 8 4 49 Haulers Intercepted 2 | . . . 2 Recyclers Shooed . | . . . . Parts Field Recycled . | . . . . Retrieved Matter . | . . . . Parts Self-Destructed . | . . . . Prevented . | . . . . Kills | -11 -10 -10 -9 ------- Run | Yrd Mat Min Mat Combat Hostiles Destroyed 20 | 1 2 2 15 Guns 10 | 1 . . 9 Cannons 10 | . 2 2 6 Classes Destroyed 8 | 1 2 1 4 Worker 5 | . 1 . 4 Builder 3 | . . . 3 Hauler 2 | . . . 2 Watcher 5 | . 1 . 4 Swarmer 4 | . . 2 2 Grunt 11 | 1 2 . 8 Brawler 1 | . . . 1 Sentry 4 | . . . 4 Best Kill Streak 13 | 1 4 2 13 Combat Bots Only 3 | 1 2 2 3 Max Kills in Single Turn 4 | 1 1 1 4 Gunslinging . | . . . . Exploded . | . . . . Melee . | . . . . Uniques/NPCs Destroyed . | . . . . Combat | -11 -10 -10 -9 -------- Run | Yrd Mat Min Mat Hostile Shots Fired 259 | 2 14 25 218 Missed 64 | 1 5 1 57 Hits 195 | 1 9 24 161 Projectile 195 | 1 9 24 161 Critical Strikes 10 | . . . 10 Actively Blocked 2 | . . . 2 Damage Taken 1506 | 6 73 113 1314 Core 418 | 6 7 . 405 Absorbed by Shields . | . . . . Redirected to Shielding 50 | . . 4 46 Ignored by Resistances 952 | 4 44 82 822 Core Remaining (%) 95 | 97 . 94 . Volleys Fired 63 | 3 9 5 46 Largest 3 | 2 2 2 3 Hottest 200 | 40 60 200 151 Shots Fired 132 | 6 18 10 98 Gun 53 | 6 . . 47 Cannon 73 | . 18 4 51 Launcher . | . . . . Special 6 | . . 6 . Kinetic 79 | 6 18 4 51 Thermal 53 | . . 6 47 Explosive . | . . . . Electromagnetic . | . . . . Robot Hit Streak 18 | 2 8 1 18 Robot Miss Streak 5 | 1 1 5 2 Penetration Max . | . . . . Secondary Targets . | . . . . Shots Hit Robots 79 | 4 13 2 60 Core Hits 41 | 2 5 2 32 Critical Kills . | . . . . Critical Parts Destroyed . | . . . . Critical Strikes 7 | . . . 7 Burn 5 | . . . 5 Blast 2 | . . . 2 Melee Attacks . | . . . . Impact . | . . . . Slashing . | . . . . Piercing . | . . . . Sneak Attacks . | . . . . Combat Hostiles . | . . . . Follow-up Attacks . | . . . . Damage Inflicted 1875 | 42 243 43 1547 Guns 551 | 42 . . 509 Cannons 730 | . 243 17 470 Explosions 568 | . . . 568 Melee . | . . . . Ramming . | . . . . Kinetic 772 | 42 243 17 470 Thermal 535 | . . 26 509 Explosive 568 | . . . 568 Electromagnetic . | . . . . Impact . | . . . . Slashing . | . . . . Piercing . | . . . . Highest Corruption . | . . . . Average Corruption . | . . . . Corruption Purged . | . . . . Corruption Blocked . | . . . . Overload Shots . | . . . . Overflow Damage 94 | . . . 94 Projectiles 13 | . . . 13 Explosions 81 | . . . 81 Melee . | . . . . Knockbacks 8 | . 6 . 2 Impact . | . . . . Kinetic 8 | . 6 . 2 Secondary . | . . . . Self-Inflicted Damage 33 | . . . 33 Shots 1 | . . . 1 Rammed . | . . . . Targets Rammed . | . . . . Kicked . | . . . . Crushed . | . . . . Highest Temperature 336 | 6 210 336 196 Average Temperature 94 | 6 99 227 69 Received Heat Transfer 1287 | 6 66 . 1215 Effects 2 | . . 2 . Shutdowns 1 | . . 1 . Short Circuit 1 | . . 1 . Siege Activations . | . . . . Martial Activations . | . . . . Shielding Activations . | . . . . Robots Disrupted . | . . . . Combat Hostiles . | . . . . Robots Corrupted . | . . . . Combat Hostiles . | . . . . Parts Fried . | . . . . Impact Corruptions . | . . . . Robots Melted . | . . . . Combat Hostiles . | . . . . Parts Melted 2 | . . . 2 Heat Transferred 1678 | . . 50 1628 Parts Sabotaged . | . . . . Parts Stolen . | . . . . Parts Stripped . | . . . . Power Chain Reactions . | . . . . Alert | -11 -10 -10 -9 ------- Run | Yrd Mat Min Mat Maximum Alert Level . | . . . . Low Security (%) 100 | 100 100 100 100 Level 1 . | . . . . Level 2 . | . . . . Level 3 . | . . . . Level 4 . | . . . . Level 5 . | . . . . High Security . | . . . . Max Security . | . . . . Peak Influence 143 | 20 40 35 143 Initial 9 | . . . 9 Average 33 | 2 7 2 53 Influence Increases 647 | 20 64 51 512 Destroy 0b10 Robot/C 400 | 20 40 40 300 Destroy 0b10 Robot/NC 75 | . 10 . 65 Destroy Leader 114 | . 12 10 92 Successful Hack 2 | . 2 . . Disable Machine 16 | . . . 16 Destroy Structure 25 | . . 1 24 Lose Combat Pursuer 15 | . . . 15 Influence Decreases 647 | 20 64 16 547 Entered New Map 26 | . . . 26 Time Decay 581 | 20 64 16 481 Lost Part 40 | . . . 40 Squads Dispatched 2 | . . . 2 Investigation . | . . . . Extermination . | . . . . Reinforcement 2 | . . . 2 Assault . | . . . . Garrison . | . . . . Intercept . | . . . . Searches Triggered . | . . . . Construction Impeded . | . . . . Haulers Reinforced . | . . . . Active Scanning Responses . | . . . . Cargo Convoy Interrupts . | . . . . Stealth | -11 -10 -10 -9 --------- Run | Yrd Mat Min Mat Distress Signals 4 | . 1 . 3 Communications Jammed . | . . . . Distress Signals . | . . . . Times Spotted 34 | 1 5 2 26 Peak Tracking Total 5 | 1 4 2 5 Tactical Retreats 1 | . . . 1 Traps | -11 -10 -10 -9 ------- Run | Yrd Mat Min Mat Traps Triggered . | . . . . Indirectly . | . . . . Trap Hack Attempts . | . . . . Triggered . | . . . . Disarmed . | . . . . Reprogrammed . | . . . . Reused . | . . . . Traps Extracted . | . . . . Installed . | . . . . Triggered . | . . . . Machines | -11 -10 -10 -9 ---------- Run | Yrd Mat Min Mat Machines Disabled 4 | . . . 4 Max in Single Turn 2 | . . . 2 Machines Repaired . | . . . . Machines Dismantled . | . . . . Machines Sabotaged . | . . . . Overloaded Fab Kills . | . . . . Hacking | -11 -10 -10 -9 --------- Run | Yrd Mat Min Mat Machines Accessed 3 | . 2 . 1 Terminals 3 | . 2 . 1 Fabricators . | . . . . Repair Stations . | . . . . Recycling Units . | . . . . Scanalyzers . | . . . . Garrison Access . | . . . . Total Hacks 13 | . 11 . 2 Successful 13 | . 11 . 2 Failed . | . . . . Catastrophic . | . . . . Database Lockouts . | . . . . Manual . | . . . . Terminals 13 | . 11 . 2 Fabricators . | . . . . Repair Stations . | . . . . Recycling Units . | . . . . Scanalyzers . | . . . . Garrison Access . | . . . . Terminal Hacks 13 | . 11 . 2 Record 7 | . 6 . 1 Robot Analysis 1 | . 1 . . Prototype ID Bank 1 | . 1 . . Alert Level 2 | . 1 . 1 Locate Traps 1 | . 1 . . Maintenance Status 1 | . 1 . . Fabricator Hacks . | . . . . Repair Station Hacks . | . . . . Recycling Unit Hacks . | . . . . Scanalyzer . | . . . . Garrison Access Hacks . | . . . . Unauthorized Hacks . | . . . . Terminals . | . . . . Fabricators . | . . . . Repair Stations . | . . . . Recycling Units . | . . . . Scanalyzers . | . . . . Garrison Access . | . . . . Data Cores Recovered . | . . . . Used . | . . . . Hacking Detections 2 | . 2 . . Full Trace Events 1 | . 1 . . Feedback Events . | . . . . Feedback Blocked . | . . . . Robot Schematics Acquired . | . . . . Robots Built . | . . . . Authchips . | . . . . Time . | . . . . Total Robot Build Rating . | . . . . Part Schematics Acquired . | . . . . Parts Built . | . . . . Authchips . | . . . . Time . | . . . . Total Part Build Rating . | . . . . Parts Repaired . | . . . . Time . | . . . . Parts Recycled . | . . . . Recycled Matter . | . . . . Retrieved Matter . | . . . . Retrieved Components . | . . . . Parts Scanalyzed . | . . . . Part Schematics Acquired . | . . . . Parts Damaged . | . . . . Bothacking | -11 -10 -10 -9 ------------ Run | Yrd Mat Min Mat Used RIF Installer . | . . . . Robots Hacked . | . . . . Non-combat . | . . . . Combat . | . . . . Robot Hacks Applied . | . . . . Relay Couplers Released . | . . . . Fabnet Peak Effective % . | . . . . Robots Rewired . | . . . . Allies Hacked . | . . . . Hacks Repelled . | . . . . Allies | -11 -10 -10 -9 -------- Run | Yrd Mat Min Mat Total Allies . | . . . . Largest Group . | . . . . Highest-Rated Group . | . . . . Highest-Rated Ally . | . . . . Total Orders . | . . . . Ally Attacks . | . . . . Total Damage . | . . . . Kills . | . . . . Allies Corrupted . | . . . . Allies Melted . | . . . . Intel | -11 -10 -10 -9 ------- Run | Yrd Mat Min Mat Active Infowar (turns) . | . . . . Robot Analysis Total 1 | . 1 . . Derelict Logs Recovered . | . . . . Drone Launches . | . . . . Drone Recoveries . | . . . . Exploration | -11 -10 -10 -9 ------------- Run | Yrd Mat Min Mat Turns Passed 1557 | 120 233 279 925 Spaces Moved 960 | 114 233 311 302 Core 26 | 26 . . . Treads 224 | . . . 224 Legs 65 | . . . 65 Wheels 645 | 88 233 311 13 Hover . | . . . . Flight . | . . . . Fastest Speed 50 | 50 80 80 80 Average Speed 119 | 73 80 80 207 Slowest Speed 240 | 80 80 80 240 Overloaded Moves . | . . . . Propulsion Burnouts . | . . . . Robots Hopped . | . . . . Potential Cave-ins . | . . . . Cave-ins Triggered . | . . . . Exploration Rate (%) 31 | 6 27 60 34 Regions Visited 3 Branch Regions 1 Pre-discovered Areas . | . . . . Known Exits Taken 3 | 1 1 1 . Unknown Exits Taken . | . . . . Scrap Searched . | . . . . Spaces Dug . | . . . . Terrain Destroyed 23 | . . 1 22 Melee . | . . . . Projectile 1 | . . 1 . AOE 22 | . . . 22 Terrain Rammed . | . . . . Walls Destroyed . | . . . . Machines Disabled . | . . . . Actions | -11 -10 -10 -9 --------- Run | Yrd Mat Min Mat Total 1240 | 144 259 318 519 Wait 161 | 11 3 . 147 Move 957 | 113 232 310 302 Hop . | . . . . Pick Up 18 | 10 6 . 2 Fast Attach 3 | . 1 . 2 Attach 7 | 7 . . . Detach . | . . . . Swap 21 | . 5 2 14 Drop 10 | . 3 1 6 Fire 63 | 3 9 5 46 Melee . | . . . . Ram . | . . . . Kick . | . . . . Crush . | . . . . Escape Stasis . | . . . . Rewire . | . . . . Trap . | . . . . Miscellaneous . | . . . . Route ------- -11/Scrapyard -10/Materials -10/Mines -9/Materials (discovered 3 exits: *Mat / *Min x2) History --------- Turn | Location | Event 2 | -11/Scrapyard | Met Revision 17 80 | -11/Scrapyard | Identified exit to Materials 80 | -11/Scrapyard | Discovered exit to Materials (range 8) 121 | -11/Scrapyard | Entered Materials 121 | -10/Materials | Evolved 1 slot: Power x1 312 | -10/Materials | Build established: Hacker-Mutant 320 | -10/Materials | Identified exit to Mines 320 | -10/Materials | Discovered exit to Mines (range 15) 354 | -10/Materials | Entered Mines 592 | -10/Mines | Identified exit to Materials 592 | -10/Mines | Discovered exit to Materials (range 7) 633 | -10/Mines | Entered Materials 633 | -9/Materials | Evolved 2 slots: Utility x1, Weapon x1 734 | -9/Materials | Identified exit to Mines 734 | -9/Materials | Discovered exit to Mines (range 16) 983 | -9/Materials | Discovered exit to Mines (range 13) 1089 | -9/Materials | Build established: Hacker-Tank 1390 | -9/Materials | Identified exit to Materials 1390 | -9/Materials | Discovered exit to Materials (range 15) 1510 | -9/Materials | Core integrity fell below 50% 1512 | -9/Materials | Lost 4 parts (1p2u1w) 1543 | -9/Materials | Core integrity fell below 20% 1558 | -9/Materials | Destroyed by G-47 Trooper with Particle Gun Last Messages --------------- Imp. Ion Engine destroyed. Ion Engine melted. G-34 Mercenary destroyed. Critical hit (Burn: +37). Lgt. Armor Plating destroyed. Propulsion Shielding destroyed. Imp. Ion Engine destroyed. Beam Rifle destroyed. Critical hit (Burn: +37). U-05 Engineer builds a Door. Lgt. Treads destroyed. Imp. Treads destroyed. K-01 Serf collects debris. Heat Sink destroyed. K-01 Serf collects debris. Critical hit (Burn: +37). K-01 Serf collects debris. Critical hit (Burn: +37). K-01 Serf collects debris. [Achievement: First Step to Greatness] Map ----- +----------------------------------------------------+ | | | | | | | | | | | | | | | | | | | | | | | | | | | | | ??????????????????????????????????????????????? | | ??????????????????????????????????????????????? | | ??????????????????????????????????????????????? | | ??????????????????????????????????????#####???? | | ???????????????????????????#####??????#"""#???? | | ????????????####+###########"T"########"T"##### | | ????????????# o | | ????????????# < | | ????????????? "" """ "T | | ????????????????# " """"" # | | ????????????????# """" # | | ????????????????# @ k * # | | ????????????????# g %= # | | ????????????????# g [ | | ????????????? o | | ???????????" # %%! u | | ??????????"" ?###[###################/##### | | ??????????"" ?????# ???????????# = # | | ??????????????????#????????????##%*] #? | | ????????????????????????????????# ]/ #? | | ????????????????????????????????# ][ #? | | ????????????????????????????????# = #? | | ????????????????????????????????#! #? | | ????????????????????????????????#% #? | | ????????????????????????????????#+############ | | ????????????????????????????????# #??????????# | | ????????????????????????????????# #??????????# | | ???????????????????????????????## #??????????# | | ???????????????????????????????+ #??????????# | | ?????????????????????#?????????## #??????????# | | ????????????????????# ?????### ###????????# | | ????????????????????# = ??# *=#######+## | | ????????????????????# # ! | | ????????????????????# + =%!] | | ????????????????????? """ """ # * * | | ???????????????????????"" """?# #######+## | +----------------------------------------------------+ Best States ------------- Heat Dissipation 38 Coolant Potential 50 Energy Generation 19 Energy Capacity 430 Matter Stores 300 Matter Capacity 300 Sight Range 16 Terrain Scan Density 10 Armor Coverage 150 Resistance: KI 35 Resistance: TH 35 Resistance: EX 35 Resistance: EM 35 Resistance: I 35 Resistance: S 35 Resistance: P 35 Propulsion Shielding 33 Evasion (%) 50 Targeting Accuracy 5 Recoil Reduction 2 Offensive Hacking 20 Item Schematics ----------------- None Robot Schematics ------------------ None Fabricated ------------ Nothing Repaired ---------- Nothing Alien Tech Used ----------------- None Achievements -------------- First Step to Greatness Storm Trooper Uninvited Guest Challenges ------------ None Game ------ Seed SensorMomentumLog Manual? 0 Play Time 00:31:07 Cumulative 0.4 hours Start 2025.06.28 @ 05:14:50 End 2025.06.28 @ 05:53:50 Sessions 1 Manual Loads 0 Difficulty Explorer Special Mode None Game No. 2 Rogue 0 Adventurer 0 Explorer 2 Win Type - Total 0 Types 0/0/0/0/0/0/0/0/0/0 Lore% 1 Gallery% 2 Achievement% 2 Wizard Run 0 Options --------- Layout 1 ASCII 0 Keyboard 0 Movement Arrows Keybinds 0 Fullscreen 1 Font 32/SmallcapsGlow Map View 50x35 Zoom Use 0% Tactical HUD 0 Map Filters NONE Filters NONE Steam 1 RUN: dfdf4d06-2869-447b-af86-b25cb1a467c2